Cogmind - Beta 16 @@@ ROGUE MODE // 2025.11.17 @ 09:24:29 Player: Scringis Result: Self-destructed Performance ------------- Evolutions (1) 500 Regions Visited (3) 600 Robots Destroyed (28) 140 Value Destroyed (588) 588 Prototype IDs (0) 0 Alien Tech Used (0) 0 Bonus (0) 0 TOTAL SCORE: 1828 Bonus ------- None Cogmind --------- Core Integrity 340/400 Matter 9/300 Energy 100/100 System Corruption 0% Temperature Cool (0) Movement Treading (160) Location -9/Materials Parts ------- > --- POWER (1) -------- (None) > --- PROPULSION (2) --- Light Treads > --- UTILITY (2) ------ Medium Storage Unit > --- WEAPON (4) ------- Rocket Launcher > --- INVENTORY (10) --- Authchip [Device] Particle Cannon Mining Laser Peak State ------------ > --- POWER ------------ Ion Engine > --- PROPULSION ------- Light Treads Light Treads > --- UTILITY ---------- Improved Heat Sink Medium Storage Unit > --- WEAPON ----------- Particle Cannon Light Assault Rifle > --- INVENTORY -------- Light Ion Engine Authchip [Device] Rocket Launcher Rocket Launcher Mining Laser [Rating: 11] Favorites ----------- Power Ion Engine Engine Ion Engine Propulsion Light Treads Treads Light Treads Utility Medium Storage Unit Device Improved Heat Sink Storage Medium Storage Unit Weapon Light Assault Rifle Energy Cannon Particle Cannon Ballistic Gun Light Assault Rifle Launcher Rocket Launcher Special Weapon Mining Laser Build | -11 -10 -10 -9 ------- Run | Yrd Mat Min Mat Slots Evolved 2 | . . . 2 Power . | . . . . Propulsion . | . . . . Utility . | . . . . Weapon 2 | . . . 2 Parts Attached 14 | 4 8 . 2 Power 2 | 1 1 . . Engine 2 | 1 1 . . Core . | . . . . Reactor . | . . . . Propulsion 3 | 2 1 . . Treads 3 | 2 1 . . Leg . | . . . . Wheel . | . . . . Hover . | . . . . Flight . | . . . . Utility 3 | 1 2 . . Device 1 | . 1 . . Storage 2 | 1 1 . . Processor . | . . . . Hackware . | . . . . Protection . | . . . . Artifact . | . . . . Weapon 6 | . 4 . 2 Energy Gun . | . . . . Energy Cannon 1 | . 1 . . Ballistic Gun 2 | . 2 . . Ballistic Cannon . | . . . . Launcher 2 | . . . 2 Special Weapon 1 | . 1 . . Impact Weapon . | . . . . Slashing Weapon . | . . . . Piercing Weapon . | . . . . Special Melee Weapon . | . . . . Unidentified Prototypes . | . . . . Parts Lost 8 | . 5 . 3 Power 2 | . 2 . . Propulsion 2 | . 2 . . Utility 1 | . 1 . . Weapon 3 | . . . 3 Highest Loss Streak 3 | . 3 . 3 To Critical Strikes . | . . . . Average Backups 4 | 1 4 5 3 Power . | . 1 . . Propulsion . | . . . . Utility . | . . 1 1 Weapon 2 | . 2 4 2 Tool/Special . | . . . . Unused Backups 2 | . 1 . 1 Power . | . . . . Propulsion . | . . . . Utility 2 | . 1 . 1 Weapon . | . . . . Tool/Special . | . . . . Average Slot Usage (%) 71 | . 77 57 60 Engine 8 | . 12 . . Treads 21 | . 26 14 11 Device 2 | . 3 . . Storage 13 | . 14 14 11 Energy Cannon 1 | . 2 . . Ballistic Gun 18 | . 16 28 21 Launcher 3 | . . . 16 Peak Build Rating 11 | 4 11 5 8 Average Rating 6 | 2 6 5 7 On Entrance 3 | . 4 5 5 Avg Prop Armor Cover (%) . | . . . . Naked Turns . | . . . . Heaviest Build 21 | 8 21 12 20 Greatest Support 40 | 40 40 20 20 Greatest Overweight (x) 2 | . 2 . . Average Overweight (x) . | . . . . Largest Inventory Capacity 10 | 8 10 10 10 Average Capacity 9 | 7 9 10 10 Most Carried 8 | 4 8 5 5 Average Carried 4 | 1 4 5 3 Final Capacity 10 | 8 10 10 10 Final Carried 5 | 2 5 5 3 Class Distribution -------------------- 83% | Mutant 16% | Gunner Dominant Class ---------------- Mutant | -10/Materials Mutant | -10/Mines Gunner | -9/Materials Resources | -11 -10 -10 -9 ----------- Run | Yrd Mat Min Mat Matter Collected 455 | 223 211 . 21 Remotely . | . . . . Salvage Created 681 | . 477 . 204 Parts 46 | . 25 . 21 Haulers Intercepted 4 | . 2 . 2 Recyclers Shooed . | . . . . Parts Field Recycled . | . . . . Retrieved Matter . | . . . . Parts Self-Destructed . | . . . . Prevented . | . . . . Parts Restored . | . . . . Kills | -11 -10 -10 -9 ------- Run | Yrd Mat Min Mat Combat Hostiles Destroyed 17 | . 10 . 7 Guns 8 | . 7 . 1 Cannons 3 | . 3 . . AOE 6 | . . . 6 Classes Destroyed 6 | . 4 . 2 Builder 6 | . 1 . 5 Hauler 4 | . 2 . 2 Watcher 1 | . . . 1 Swarmer 6 | . 3 . 3 Grunt 10 | . 7 . 3 Sentry 1 | . . . 1 Best Kill Streak 6 | . 6 . 6 Combat Bots Only 4 | . 3 . 4 Max Kills in Single Turn 2 | . 2 . 2 Gunslinging . | . . . . Exploded 2 | . . . 2 Melee . | . . . . Uniques/NPCs Destroyed . | . . . . Combat | -11 -10 -10 -9 -------- Run | Yrd Mat Min Mat Hostile Shots Fired 89 | . 65 . 24 Missed 21 | . 14 . 7 Hits 68 | . 51 . 17 Projectile 68 | . 51 . 17 Critical Strikes 2 | . 1 . 1 Damage Taken 895 | . 638 . 257 Core 143 | . 83 . 60 Absorbed by Shields . | . . . . Core Remaining (%) 83 | 100 . 66 . Volleys Fired 64 | . 46 . 18 Largest 4 | . 2 . 4 Hottest 106 | . 88 . 106 Shots Fired 128 | . 75 . 53 Gun 95 | . 67 . 28 Cannon 8 | . 8 . . Launcher 25 | . . . 25 Special . | . . . . Kinetic 95 | . 67 . 28 Thermal 8 | . 8 . . Explosive 25 | . . . 25 Electromagnetic . | . . . . Robot Hit Streak 10 | . 6 . 10 Robot Miss Streak 6 | . 2 . 6 Penetration Max . | . . . . Secondary Targets 1 | . 1 . . Max Gunslinging Chain 1 | . 1 . . Shots Hit Robots 76 | . 50 . 26 Core Hits 61 | . 29 . 32 Critical Kills . | . . . . Critical Parts Destroyed . | . . . . Critical Strikes . | . . . . Melee Attacks . | . . . . Impact . | . . . . Slashing . | . . . . Piercing . | . . . . Sneak Attacks . | . . . . Combat Hostiles . | . . . . Follow-up Attacks . | . . . . Damage Inflicted 1718 | . 496 . 1222 Guns 508 | . 373 . 135 Cannons 123 | . 123 . . Explosions 1087 | . . . 1087 Melee . | . . . . Ramming . | . . . . Kinetic 508 | . 373 . 135 Thermal 170 | . 123 . 47 Explosive 969 | . . . 969 Electromagnetic 71 | . . . 71 Impact . | . . . . Slashing . | . . . . Piercing . | . . . . Highest Corruption 1 | . 1 1 . Average Corruption 1 | . 1 1 . Corruption Purged . | . . . . Corruption Blocked . | . . . . Effects 5 | . 3 2 . Message Errors 3 | . 2 1 . Matter Fused 1 | . 1 . . Data Loss (major) 1 | . . 1 . Overload Shots . | . . . . Overflow Damage 44 | . 8 . 36 Projectiles 8 | . 8 . . Explosions 36 | . . . 36 Melee . | . . . . Knockbacks . | . . . . Impact . | . . . . Kinetic . | . . . . Secondary . | . . . . Self-Inflicted Damage 78 | . . . 78 Shots 2 | . . . 2 Rammed 1 | 1 . . . Targets Rammed 1 | 1 . . . Kicked . | . . . . Crushed . | . . . . Highest Temperature 130 | . 130 . 84 Average Temperature 31 | . 31 . 31 Received Heat Transfer 420 | . 354 . 66 Siege Activations . | . . . . Martial Activations . | . . . . Shielding Activations . | . . . . Robots Disrupted . | . . . . Combat Hostiles . | . . . . Robots Corrupted . | . . . . Combat Hostiles . | . . . . Parts Fried . | . . . . Impact Corruptions . | . . . . Robots Melted . | . . . . Combat Hostiles . | . . . . Parts Melted . | . . . . Heat Transferred 272 | . 222 . 50 Parts Sabotaged . | . . . . Parts Stolen . | . . . . Parts Stripped . | . . . . Power Chain Reactions 1 | . . . 1 Alert | -11 -10 -10 -9 ------- Run | Yrd Mat Min Mat Maximum Alert Level 1 | . . . 1 Low Security (%) 97 | 100 100 100 88 Level 1 2 | . . . 11 Level 2 . | . . . . Level 3 . | . . . . Level 4 . | . . . . Level 5 . | . . . . High Security . | . . . . Max Security . | . . . . Peak Influence 281 | . 135 21 281 Initial 21 | . . 21 . Average 35 | . 32 4 69 Influence Increases 677 | . 286 . 391 Destroy 0b10 Robot/C 340 | . 200 . 140 Destroy 0b10 Robot/NC 55 | . 15 . 40 Destroy Leader 70 | . 44 . 26 Successful Hack 12 | . 12 . . Disable Machine 75 | . . . 75 Destroy Structure 110 | . . . 110 Lose Combat Pursuer 15 | . 15 . . Influence Decreases 396 | . 231 55 110 Entered New Map 34 | . . 34 . Time Decay 272 | . 171 21 80 Lost Part 80 | . 50 . 30 Lost Ally 10 | . 10 . . Squads Dispatched 2 | . 2 . . Investigation 1 | . 1 . . Extermination . | . . . . Reinforcement 1 | . 1 . . Assault . | . . . . Garrison . | . . . . Intercept . | . . . . Searches Triggered . | . . . . Construction Impeded . | . . . . Haulers Reinforced . | . . . . Active Scanning Responses . | . . . . Cargo Convoy Interrupts . | . . . . Stealth | -11 -10 -10 -9 --------- Run | Yrd Mat Min Mat Distress Signals 6 | . 4 . 2 Communications Jammed . | . . . . Distress Signals . | . . . . Times Spotted 29 | . 18 . 11 Peak Tracking Total 5 | . 5 . 5 Tactical Retreats 1 | . 1 . . Traps | -11 -10 -10 -9 ------- Run | Yrd Mat Min Mat Traps Triggered 4 | . 4 . . Indirectly . | . . . . Trap Hack Attempts . | . . . . Triggered . | . . . . Disarmed . | . . . . Reprogrammed . | . . . . Reused . | . . . . Traps Extracted . | . . . . Installed . | . . . . Triggered . | . . . . Machines | -11 -10 -10 -9 ---------- Run | Yrd Mat Min Mat Machines Disabled 5 | . . . 5 Max in Single Turn 1 | . . . 1 Machines Repaired . | . . . . Machines Dismantled . | . . . . Machines Sabotaged . | . . . . Overloaded Fab Kills . | . . . . Hacking | -11 -10 -10 -9 --------- Run | Yrd Mat Min Mat Machines Accessed 4 | . 4 . . Terminals 4 | . 4 . . Fabricators . | . . . . Repair Stations . | . . . . Recycling Units . | . . . . Scanalyzers . | . . . . Garrison Access . | . . . . Total Hacks 10 | . 10 . . Successful 5 | . 5 . . Failed 5 | . 5 . . Catastrophic 1 | . 1 . . Database Lockouts . | . . . . Manual 10 | . 10 . . Terminals 10 | . 10 . . Fabricators . | . . . . Repair Stations . | . . . . Recycling Units . | . . . . Scanalyzers . | . . . . Garrison Access . | . . . . Terminal Hacks 1 | . 1 . . Terminal Index 1 | . 1 . . Fabricator Hacks . | . . . . Repair Station Hacks . | . . . . Recycling Unit Hacks . | . . . . Scanalyzer . | . . . . Garrison Access Hacks . | . . . . Unauthorized Hacks 4 | . 4 . . Terminals 4 | . 4 . . Track 1 | . 1 . . Assimilate 1 | . 1 . . Operators 2 | . 2 . . Fabricators . | . . . . Repair Stations . | . . . . Recycling Units . | . . . . Scanalyzers . | . . . . Garrison Access . | . . . . Data Cores Recovered . | . . . . Used . | . . . . Hacking Detections 3 | . 3 . . Full Trace Events 2 | . 2 . . Feedback Events . | . . . . Feedback Blocked . | . . . . Robot Schematics Acquired . | . . . . Robots Built . | . . . . Authchips . | . . . . Time . | . . . . Total Robot Build Rating . | . . . . Part Schematics Acquired . | . . . . Parts Built . | . . . . Authchips . | . . . . Time . | . . . . Total Part Build Rating . | . . . . Part Studies Acquired . | . . . . Parts Repaired . | . . . . Time . | . . . . Parts Recycled . | . . . . Recycled Matter . | . . . . Retrieved Matter . | . . . . Retrieved Components . | . . . . Parts Scanalyzed . | . . . . Part Schematics Acquired . | . . . . Parts Damaged . | . . . . Bothacking | -11 -10 -10 -9 ------------ Run | Yrd Mat Min Mat Used RIF Installer . | . . . . Robots Hacked . | . . . . Non-combat . | . . . . Combat . | . . . . Robot Hacks Applied . | . . . . Relay Couplers Released . | . . . . Fabnet Peak Effective % . | . . . . Robots Rewired . | . . . . Allies Hacked . | . . . . Hacks Repelled . | . . . . Allies | -11 -10 -10 -9 -------- Run | Yrd Mat Min Mat Total Allies 1 | . 1 . . Largest Group 1 | . 1 . . Highest-Rated Group 10 | . 10 . . Highest-Rated Ally 10 | . 10 . . Total Orders . | . . . . Ally Attacks . | . . . . Total Damage . | . . . . Kills . | . . . . Allies Corrupted . | . . . . Allies Melted . | . . . . Intel | -11 -10 -10 -9 ------- Run | Yrd Mat Min Mat Active Infowar (turns) . | . . . . Robot Analysis Total . | . . . . Derelict Logs Recovered . | . . . . Drone Launches . | . . . . Drone Recoveries . | . . . . Exploration | -11 -10 -10 -9 ------------- Run | Yrd Mat Min Mat Turns Passed 1197 | 51 782 128 236 Spaces Moved 641 | 37 409 81 114 Core 51 | 17 34 . . Treads 590 | 20 375 81 114 Legs . | . . . . Wheels . | . . . . Hover . | . . . . Flight . | . . . . Fastest Speed 50 | 50 100 160 160 Average Speed 153 | 109 155 160 160 Slowest Speed 160 | 160 160 160 160 Overloaded Moves . | . . . . Propulsion Burnouts . | . . . . Robots Hopped . | . . . . Potential Cave-ins . | . . . . Cave-ins Triggered . | . . . . Exploration Rate (%) 30 | 4 65 26 25 Regions Visited 3 Branch Regions 1 Pre-discovered Areas . | . . . . Known Exits Taken . | . . . . Unknown Exits Taken 3 | 1 1 1 . Scrap Searched . | . . . . Spaces Dug . | . . . . Terrain Destroyed 121 | . . . 121 Melee . | . . . . Projectile . | . . . . AOE 121 | . . . 121 Terrain Rammed . | . . . . Walls Destroyed . | . . . . Machines Disabled . | . . . . Actions | -11 -10 -10 -9 --------- Run | Yrd Mat Min Mat Total 758 | 47 496 80 135 Wait 9 | . 8 . 1 Move 639 | 37 408 80 114 Hop . | . . . . Pick Up 22 | 6 16 . . Fast Attach . | . . . . Attach 19 | 4 13 . 2 Detach 1 | . 1 . . Swap 2 | . 2 . . Drop 2 | . 2 . . Fire 64 | . 46 . 18 Melee . | . . . . Ram . | . . . . Kick . | . . . . Crush . | . . . . Escape Stasis . | . . . . Rewire . | . . . . Trap . | . . . . Miscellaneous . | . . . . Route ------- -11/Scrapyard -10/Materials (discovered 4 exits: [*Mat x2] / [*Min x2]) -10/Mines -9/Materials History --------- Turn | Location | Event 6 | -11/Scrapyard | Discovered new exit (range 14) 52 | -11/Scrapyard | Entered Materials 219 | -10/Materials | Discovered new exit (range 14) 300 | -10/Materials | Build established: Mutant 583 | -10/Materials | Discovered new exit (range 11) 583 | -10/Materials | Discovered new exit (range 3) 701 | -10/Materials | Discovered new exit (range 13) 834 | -10/Materials | Entered Mines 858 | -10/Mines | Lost 3 parts (2p1n) 940 | -10/Mines | Discovered new exit (range 15) 962 | -10/Mines | Entered Materials 962 | -9/Materials | Evolved 2 slots: Weapon x2 1198 | -9/Materials | Self-destructed Last Messages --------------- 01186_ U-05 Engineer lays Concrete. 01187_ Lgt. Assault Rifle destroyed. 01187_ Destroyed Lgt. Assault Rifle. 01187_ Lgt. Assault Rifle destroyed. 01187_ Destroyed Lgt. Assault Rifle. 01187_ U-05 Engineer builds a Wall. 01187_ Critical hit (Burn: +37). 01188_ U-05 Engineer lays Concrete. 01188_ U-05 Engineer builds a Wall. 01189_ U-05 Engineer lays Concrete. 01190_ Destroyed Flight Unit. 01190_ S-10 Pest destroyed. 01190_ U-05 Engineer lays Concrete. 01192_ S-10 Pest destroyed. 01192_ U-05 Engineer lays Concrete. 01194_ U-05 Engineer builds a Wall. 01195_ U-05 Engineer lays Concrete. 01195_ U-05 Engineer builds a Wall. 01196_ Y-45 Defender destroyed. 01196_ U-05 Engineer lays Concrete. Map ----- +----------------------------------------------------+ | """ #???# #??????????????????????????????? | | #???# #??????????????????????????????? | | #???# #??????????????????????????????? | | ###?# #??????????????????????????????? | | ## ### #??????????????????????????????? | | # #??????????????????????????????? | | # #??????????????????????????????? | | # #??????????????????????????????? | | + #??????????????????????????????? | | # #??????????????????????????????? | | # #??????????????????????????????? | | #######?########?????????????????????? | | #??????? #?????????????????????? | | #??????? [ #??????"??????????????? | | #????#?""" #?????!!#?????????????? | | #????# """ #???? ""#?????????????? | | "" ###### """ """#??? !!#?????????????? | | # T" # # ## """ R"#??? ""#?????????????? | | # "" # """ """#?? ???????????????? | | # #? #????? ? ????????? | | #+# ###+## #### ????????? | | ######u #u ???????? | | ##+#####???### r = ???????? | | # ??????????## [ u ???????? | | # "?????# #^ == = ###+??????????????? | | ??"?????# # @* #???????????? | | ??""????# # = #???????????? | | ????????# """ """ ; * k #???????????? | | ????????# """ """ # = # #???????????? | | ????????# """ """ # # #???????????? | | ?????????? # ##? #???????????? | | ?????????? # #???#+###???????????? | | ?????????########## ####???????????????????? | | ??????????????????# #??????????????????????? | | ?????????????????? ^ #??????????????????????? | | ?????????????????## #??????????????????????? | | ?????????????????? g[#??????????????????????? | | ?????????????????# [%"??????????????????????? | | ?????????????????? #??????????????????????? | | ??????????????????### #??????????????????????? | | ??????????????????????? #???????????????????????? | | ?????????????????????????????????????????????????? | | ?????????????????????????????????????????????????? | | ?????????????????????????????????????????????????? | | ?????????????????????????????????????????????????? | | ?????????????????????????????????????????????????? | | ?????????????????????????????????????????????????? | | ?????????????????????????????????????????????????? | | ?????????????????????????????????????????????????? | | ?????????????????????????????????????????????????? | +----------------------------------------------------+ Best States ------------- Heat Dissipation 39 Energy Generation 10 Energy Capacity 250 Matter Stores 300 Matter Capacity 300 Sight Range 16 Terrain Scan Density 10 Evasion (%) 50 Recoil Reduction 2 Authchip Count 1 Item Schematics ----------------- None Robot Schematics ------------------ None Fabricated ------------ Nothing Repaired ---------- Nothing Studied --------- None Alien Tech Used ----------------- None Achievements -------------- None Challenges ------------ None Game ------ Seed LightpackCompactShotgun Manual? 0 Play Time 00:10:25 Cumulative 48.1 hours Start 2025.11.17 @ 09:14:23 End 2025.11.17 @ 09:24:29 Sessions 1 Manual Loads 0 Difficulty Rogue Special Mode None Game No. 135 Rogue 135 Adventurer 0 Explorer 0 Win Type - Total 0 Types 0/0/0/0/0/0/0/0/0/0 Lore% 25 Gallery% 31 Achievement% 25 Wizard Run 0 Options --------- Layout 1 ASCII 0 Keyboard 0 Movement Numpad Keybinds 0 Fullscreen 2 Font 24/Smallcaps Map View 50x35 Zoom Use 0% Tactical HUD 1 Map Filters NONE Filters NONE Steam 1 RUN: e55eeed9-614f-408e-9c79-ad95a55b696d